Cogmind - Beta 16.1 @@@ ROGUE MODE // 2026.04.07 @ 21:03:06 Player: Ace Result: Destroyed by G-47 Trooper with Particle Gun Performance ------------- Evolutions (2) 1000 Regions Visited (3) 600 Robots Destroyed (56) 280 Value Destroyed (1678) 1678 Prototype IDs (1) 20 Alien Tech Used (0) 0 Bonus (0) 0 TOTAL SCORE: 3578 Bonus ------- None Cogmind --------- Core Integrity 0/550 Matter 27/300 Energy 325/325 System Corruption 0% Temperature Cool (9) Movement Walking (190) Ox1 Location -8/Materials Parts ------- > --- POWER (2) -------- Improved Ion Engine Light Nuclear Core > --- PROPULSION (4) --- Improved Carbon-fiber Leg > --- UTILITY (3) ------ Improved Heat Sink Advanced Weight Redist. System Visual Processing Unit > --- WEAPON (2) ------- Particle Gun Gauss Rifle > --- INVENTORY (5) ---- Improved Cooling System Seismic Detector Peak State ------------ > --- POWER ------------ Improved Ion Engine Light Nuclear Core > --- PROPULSION ------- Improved Carbon-fiber Leg > --- UTILITY ---------- Improved Heat Sink Advanced Weight Redist. System Visual Processing Unit > --- WEAPON ----------- Particle Gun Gauss Rifle > --- INVENTORY -------- Improved Cooling System Seismic Detector [Rating: 23] Favorites ----------- Power Improved Ion Engine Engine Improved Ion Engine Power Core Light Nuclear Core Propulsion Aluminum Leg Treads Light Treads Leg Aluminum Leg Utility Small Storage Unit Device Advanced Weight Redist. System Storage Small Storage Unit Processor Visual Processing Unit Hackware Hacking Suite Protection Light Armor Plating Weapon Assault Rifle Energy Gun Improved Medium Laser Ballistic Gun Assault Rifle Ballistic Cannon Improved Light Cannon Launcher Grenade Launcher Special Weapon Mining Laser Impact Weapon Heavy Hammer Build | -11 -10 -9 -8 ------- Run | Yrd Mat Mat Mat Slots Evolved 4 | . . 2 2 Power 1 | . . . 1 Propulsion 2 | . . 1 1 Utility 1 | . . 1 . Weapon . | . . . . Parts Attached 60 | 7 18 24 11 Power 10 | 2 1 3 4 Engine 7 | 2 1 2 2 Core 3 | . . 1 2 Reactor . | . . . . Propulsion 11 | 2 2 6 1 Treads 2 | 2 . . . Leg 9 | . 2 6 1 Wheel . | . . . . Hover . | . . . . Flight . | . . . . Utility 18 | 1 5 9 3 Device 5 | . . 3 2 Storage 5 | 1 4 . . Processor 1 | . . 1 . Hackware 1 | . . 1 . Protection 6 | . 1 4 1 Artifact . | . . . . Weapon 21 | 2 10 6 3 Energy Gun 4 | . 3 . 1 Energy Cannon . | . . . . Ballistic Gun 10 | 2 1 5 2 Ballistic Cannon 1 | . . 1 . Launcher 2 | . 2 . . Special Weapon 2 | . 2 . . Impact Weapon 2 | . 2 . . Slashing Weapon . | . . . . Piercing Weapon . | . . . . Special Melee Weapon . | . . . . Unidentified Prototypes 1 | . 1 . . Parts Lost 16 | . . 2 14 Power 4 | . . . 4 Propulsion 3 | . . . 3 Utility 5 | . . 2 3 Weapon 4 | . . . 4 Highest Loss Streak 13 | . . 1 13 To Critical Strikes . | . . . . Average Backups 4 | 1 5 5 3 Power . | . . . . Propulsion . | . . . . Utility 1 | . . 2 2 Weapon 2 | . 3 1 . Tool/Special . | . . . . Unused Backups 5 | . 2 3 . Power . | . . . . Propulsion . | . . . . Utility 2 | . . 2 . Weapon 3 | . 2 1 . Tool/Special . | . . . . Average Slot Usage (%) 95 | . 99 97 62 Engine 11 | . 14 10 5 Treads 13 | . 27 . . Leg 15 | . . 31 14 Device 4 | . . 10 4 Storage 12 | . 22 3 . Processor 4 | . . 7 9 Protection 7 | . 4 10 5 Ballistic Gun 14 | . 14 15 10 Ballistic Cannon 3 | . . 5 5 Launcher 5 | . 11 . . Peak Build Rating 23 | 6 12 17 23 Average Rating 11 | 5 7 15 15 On Entrance 7 | . 6 9 16 Avg Prop Armor Cover (%) . | . . . . Naked Turns . | . . . . Heaviest Build 22 | 13 21 21 22 Greatest Support 40 | 40 40 39 30 Greatest Overweight (x) 5 | . 1 . 5 Average Overweight (x) . | . . . . Largest Inventory Capacity 20 | 8 20 8 5 Average Capacity 6 | 6 8 5 5 Most Carried 7 | 2 7 7 5 Average Carried 4 | 1 5 5 3 Final Capacity 8 | 8 8 5 5 Final Carried 5 | 2 4 5 2 Class Distribution -------------------- 62% | Mutant 37% | Scavenger-Mutant Dominant Class ---------------- Mutant | -10/Materials Scavenger-Mutant | -9/Materials Scavenger-Mutant | -8/Materials Resources | -11 -10 -9 -8 ----------- Run | Yrd Mat Mat Mat Matter Collected 2073 | 251 747 942 133 Remotely . | . . . . Salvage Created 1646 | . 307 909 430 Parts 109 | . 21 66 22 Haulers Intercepted . | . . . . Recyclers Shooed 1 | . . . 1 Parts Field Recycled . | . . . . Retrieved Matter . | . . . . Parts Self-Destructed . | . . . . Prevented . | . . . . Parts Restored . | . . . . Kills | -11 -10 -9 -8 ------- Run | Yrd Mat Mat Mat Combat Hostiles Destroyed 44 | . 10 25 9 Melee 2 | . . 2 . Guns 30 | . 6 18 6 Cannons 7 | . . 4 3 AOE 4 | . 4 . . Classes Destroyed 10 | . 5 4 1 Worker 3 | . 2 1 . Recycler 1 | . . 1 . Mechanic 1 | . 1 . . Operator 1 | . . 1 . Watcher 6 | . 3 3 . Swarmer 12 | . 2 10 . Grunt 21 | . 8 7 6 Brawler 1 | . . 1 . Sentry 8 | . . 7 1 Specialist 2 | . . . 2 Best Kill Streak 5 | . 3 5 5 Combat Bots Only 5 | . 2 4 5 Max Kills in Single Turn 2 | . 2 2 1 Gunslinging . | . . . . Exploded 1 | . 1 . . Melee 1 | . . 1 . Uniques/NPCs Destroyed . | . . . . Combat | -11 -10 -9 -8 -------- Run | Yrd Mat Mat Mat Hostile Shots Fired 329 | . 41 147 141 Missed 96 | . 11 47 38 Hits 233 | . 30 100 103 Melee 1 | . . 1 . Projectile 232 | . 30 99 103 AOE 1 | . . . 1 Critical Strikes 7 | . 1 1 5 Damage Taken 3269 | . 410 1122 1737 Core 733 | . 71 111 551 Absorbed by Shields . | . . . . Regen/Repaired (Parts) 85 | . . 85 . Core Remaining (%) 81 | 100 71 72 . Volleys Fired 170 | . 51 78 41 Largest 2 | . 2 2 2 Hottest 200 | . 200 56 93 Shots Fired 312 | . 88 153 71 Gun 237 | . 65 125 47 Cannon 52 | . . 28 24 Launcher 17 | . 17 . . Special 6 | . 6 . . Kinetic 276 | . 54 153 69 Thermal 19 | . 17 . 2 Explosive 17 | . 17 . . Electromagnetic . | . . . . Robot Hit Streak 17 | . 8 17 10 Robot Miss Streak 5 | . 3 5 4 Penetration Max 1 | . . . 1 Secondary Targets 3 | . 1 1 1 Max Gunslinging Chain 1 | . 1 1 1 Shots Hit Robots 198 | . 33 109 56 Core Hits 100 | . 25 46 29 Critical Kills 1 | . . 1 . Critical Parts Destroyed 3 | . . 3 . Critical Strikes 5 | . 1 4 . Burn 1 | . 1 . . Smash 4 | . . 4 . Melee Attacks 9 | . 3 6 . Impact 9 | . 3 6 . Slashing . | . . . . Piercing . | . . . . Sneak Attacks 1 | . . 1 . Combat Hostiles . | . . . . Follow-up Attacks . | . . . . Damage Inflicted 4492 | . 1358 2038 1096 Guns 2350 | . 287 1341 722 Cannons 713 | . . 339 374 Explosions 997 | . 997 . . Melee 307 | . 27 280 . Ramming 125 | . 47 78 . Kinetic 3011 | . 269 1680 1062 Thermal 52 | . 18 . 34 Explosive 997 | . 997 . . Electromagnetic . | . . . . Impact 307 | . 27 280 . Slashing . | . . . . Piercing . | . . . . Highest Corruption 5 | . 5 2 . Average Corruption 2 | . 5 2 . Corruption Purged . | . . . . Corruption Blocked . | . . . . Effects 31 | . 12 19 . Message Errors 8 | . 3 5 . Matter Fused 8 | . 3 5 . Heat Flow Errors 4 | . 2 2 . Energy Discharges 1 | . 1 . . Parts Rejected 1 | . . 1 . Data Loss (minor) 4 | . . 4 . Data Loss (major) 2 | . . 2 . Misfires 1 | . 1 . . Alerts 1 | . 1 . . Weapon Failures 1 | . 1 . . Overload Shots . | . . . . Overflow Damage 248 | . 51 197 . Projectiles . | . . . . Explosions 51 | . 51 . . Melee 197 | . . 197 . Knockbacks 10 | . 2 2 6 Impact 3 | . 2 1 . Kinetic 6 | . . 1 5 Secondary 1 | . . . 1 Self-Inflicted Damage 41 | . 41 . . Shots 2 | . 2 . . Rammed 7 | . 7 . . Targets Rammed 29 | . 9 20 . Kicked 20 | . . 20 . Crushed 2 | . 2 . . Highest Temperature 306 | . 306 155 52 Average Temperature 64 | . 104 23 13 Received Heat Transfer 1416 | . 174 357 885 Effects 2 | . 2 . . Interference 2 | . 2 . . Siege Activations . | . . . . Martial Activations . | . . . . Shielding Activations . | . . . . Robots Disrupted . | . . . . Combat Hostiles . | . . . . Robots Corrupted 1 | . . 1 . Combat Hostiles 1 | . . 1 . Parts Fried 2 | . . 2 . Impact Corruptions 6 | . . 6 . Robots Melted . | . . . . Combat Hostiles . | . . . . Parts Melted . | . . . . Heat Transferred 185 | . 111 . 74 Parts Sabotaged . | . . . . Parts Stolen . | . . . . Parts Stripped . | . . . . Power Chain Reactions . | . . . . Alert | -11 -10 -9 -8 ------- Run | Yrd Mat Mat Mat Maximum Alert Level 1 | . . 1 . Low Security (%) 99 | 100 100 99 100 Level 1 . | . . . . Level 2 . | . . . . Level 3 . | . . . . Level 4 . | . . . . Level 5 . | . . . . High Security . | . . . . Max Security . | . . . . Peak Influence 207 | . 66 207 122 Initial 40 | . . 13 40 Average 47 | . 20 78 48 Influence Increases 1515 | . 411 762 342 Destroy 0b10 Robot/C 880 | . 200 500 180 Destroy 0b10 Robot/NC 60 | . 30 30 . Destroy Leader 222 | . 36 146 40 Successful Hack 20 | . 14 6 . Disable Machine 90 | . 30 30 30 Destroy Structure 93 | . 86 5 2 Lose Combat Pursuer 150 | . 15 45 90 Influence Decreases 1393 | . 378 699 316 Entered New Map 76 | . . 20 56 Time Decay 999 | . 378 501 120 Lost Part 160 | . . 20 140 Purge Threat 158 | . . 158 . Squads Dispatched 10 | . 1 4 5 Investigation 2 | . . 2 . Extermination . | . . . . Reinforcement 8 | . 1 2 5 Assault . | . . . . Garrison . | . . . . Intercept . | . . . . Searches Triggered . | . . . . Construction Impeded 1 | . . . 1 Haulers Reinforced . | . . . . Active Scanning Responses . | . . . . Cargo Convoy Interrupts . | . . . . Stealth | -11 -10 -9 -8 --------- Run | Yrd Mat Mat Mat Distress Signals 7 | . 1 3 3 Communications Jammed . | . . . . Distress Signals . | . . . . Times Spotted 79 | . 18 37 24 Peak Tracking Total 8 | . 5 4 8 Tactical Retreats 6 | . 1 3 2 Traps | -11 -10 -9 -8 ------- Run | Yrd Mat Mat Mat Traps Triggered 3 | . 1 2 . Indirectly . | . . . . Trap Hack Attempts . | . . . . Triggered . | . . . . Disarmed . | . . . . Reprogrammed . | . . . . Reused . | . . . . Traps Extracted . | . . . . Installed . | . . . . Triggered . | . . . . Machines | -11 -10 -9 -8 ---------- Run | Yrd Mat Mat Mat Machines Disabled 7 | . 3 2 2 Max in Single Turn 2 | . 1 1 2 Machines Repaired . | . . . . Machines Dismantled . | . . . . Machines Sabotaged . | . . . . Overloaded Fab Kills . | . . . . Hacking | -11 -10 -9 -8 --------- Run | Yrd Mat Mat Mat Machines Accessed 20 | . 7 12 1 Terminals 14 | . 7 6 1 Fabricators . | . . . . Repair Stations 2 | . . 2 . Recycling Units 2 | . . 2 . Scanalyzers 2 | . . 2 . Garrison Access . | . . . . Total Hacks 51 | . 14 35 2 Successful 23 | . 2 21 . Failed 28 | . 12 14 2 Catastrophic 9 | . 6 3 . Database Lockouts . | . . . . Manual 35 | . 13 22 . Terminals 32 | . 14 16 2 Fabricators . | . . . . Repair Stations 6 | . . 6 . Recycling Units 7 | . . 7 . Scanalyzers 6 | . . 6 . Garrison Access . | . . . . Terminal Hacks 8 | . 2 6 . Emergency Access Points 1 | . . 1 . Terminal Index 2 | . 1 1 . Scanalyzer Index 1 | . 1 . . Alert Level 1 | . . 1 . Unreport Threat 2 | . . 2 . Locate Traps 1 | . . 1 . Fabricator Hacks . | . . . . Repair Station Hacks 6 | . . 6 . Scan Component 3 | . . 3 . Repair 3 | . . 3 . Recycling Unit Hacks 4 | . . 4 . Report Inventory 2 | . . 2 . Retrieve Components 2 | . . 2 . Scanalyzer 5 | . . 5 . Retrieve Study 5 | . . 5 . Garrison Access Hacks . | . . . . Unauthorized Hacks . | . . . . Terminals . | . . . . Fabricators . | . . . . Repair Stations . | . . . . Recycling Units . | . . . . Scanalyzers . | . . . . Garrison Access . | . . . . Data Cores Recovered . | . . . . Used . | . . . . Hacking Detections 20 | . 7 12 1 Full Trace Events 3 | . . 3 . Feedback Events . | . . . . Feedback Blocked . | . . . . Robot Schematics Acquired . | . . . . Robots Built . | . . . . Authchips . | . . . . Time . | . . . . Total Robot Build Rating . | . . . . Part Schematics Acquired . | . . . . Parts Built . | . . . . Authchips . | . . . . Time . | . . . . Total Part Build Rating . | . . . . Part Studies Acquired 3 | . . 3 . Parts Repaired 3 | . . 3 . Time 84 | . . 84 . Parts Recycled . | . . . . Recycled Matter . | . . . . Retrieved Matter . | . . . . Retrieved Components 8 | . . 8 . Parts Scanalyzed . | . . . . Part Schematics Acquired . | . . . . Parts Damaged . | . . . . Bothacking | -11 -10 -9 -8 ------------ Run | Yrd Mat Mat Mat Used RIF Installer . | . . . . Robots Hacked . | . . . . Non-combat . | . . . . Combat . | . . . . Robot Hacks Applied . | . . . . Relay Couplers Released . | . . . . Fabnet Peak Effective % . | . . . . Robots Rewired . | . . . . Allies Hacked . | . . . . Hacks Repelled . | . . . . Allies | -11 -10 -9 -8 -------- Run | Yrd Mat Mat Mat Total Allies . | . . . . Largest Group . | . . . . Highest-Rated Group . | . . . . Highest-Rated Ally . | . . . . Total Orders . | . . . . Ally Attacks . | . . . . Total Damage . | . . . . Kills . | . . . . Allies Corrupted . | . . . . Allies Melted . | . . . . Intel | -11 -10 -9 -8 ------- Run | Yrd Mat Mat Mat Active Infowar (turns) 1360 | . . 1109 251 Optics 1360 | . . 1109 251 Seismic 186 | . . 186 . Robot Analysis Total . | . . . . Derelict Logs Recovered . | . . . . Drone Launches . | . . . . Drone Recoveries . | . . . . Exploration | -11 -10 -9 -8 ------------- Run | Yrd Mat Mat Mat Turns Passed 3617 | 86 1719 1561 251 Spaces Moved 1944 | 51 896 918 79 Core 15 | 5 . . 10 Treads 927 | 46 881 . . Legs 1002 | . 15 918 69 Wheels . | . . . . Hover . | . . . . Flight . | . . . . Fastest Speed 50 | 50 120 105 50 Average Speed 135 | 149 159 111 126 Slowest Speed 300 | 160 190 120 300 Overloaded Moves . | . . . . Propulsion Burnouts . | . . . . Robots Hopped . | . . . . Potential Cave-ins . | . . . . Cave-ins Triggered . | . . . . Exploration Rate (%) 49 | 5 96 84 12 Regions Visited 3 Branch Regions . Pre-discovered Areas . | . . . . Known Exits Taken . | . . . . Unknown Exits Taken 3 | 1 1 1 . Scrap Searched . | . . . . Spaces Dug 5 | . 5 . . Terrain Destroyed 105 | . 102 2 1 Melee . | . . . . Projectile 8 | . 5 2 1 AOE 97 | . 97 . . Terrain Rammed . | . . . . Walls Destroyed . | . . . . Machines Disabled . | . . . . Actions | -11 -10 -9 -8 --------- Run | Yrd Mat Mat Mat Total 2572 | 58 1073 1287 154 Wait 246 | . 40 188 18 Move 1941 | 50 895 917 79 Hop . | . . . . Pick Up 40 | 1 21 18 . Fast Attach 36 | 6 4 16 10 Attach 13 | . 5 4 4 Detach 2 | . . 1 1 Swap 39 | 1 23 14 1 Drop 47 | . 22 25 . Fire 170 | . 51 78 41 Melee 9 | . 3 6 . Ram . | . . . . Kick 20 | . . 20 . Crush 9 | . 9 . . Escape Stasis . | . . . . Rewire . | . . . . Trap . | . . . . Miscellaneous . | . . . . Route ------- -11/Scrapyard -10/Materials (discovered 6 exits: *Mat x3 / [*Min x2] / [*Sub]) -9/Materials (discovered 4 exits: *Mat x2 / [*Min x2]) -8/Materials History --------- Turn | Location | Event 4 | -11/Scrapyard | Discovered new exit (range 16) 87 | -11/Scrapyard | Entered Materials 235 | -10/Materials | Discovered new exit (range 8) 322 | -10/Materials | Discovered new exit (range 6) 351 | -10/Materials | Build established: Mutant 391 | -10/Materials | Discovered new exit (range 16) 654 | -10/Materials | Discovered new exit (range 3) 1063 | -10/Materials | Discovered new exit (range 5) 1294 | -10/Materials | Discovered new exit (range 8) 1806 | -10/Materials | Entered another Materials area 1806 | -9/Materials | Evolved 2 slots: Propulsion x1, Utility x1 1809 | -9/Materials | Discovered new exit (range 16) 2066 | -9/Materials | Repaired Lgt. Armor Plating 2263 | -9/Materials | Discovered new exit (range 17) 2569 | -9/Materials | Build established: Scavenger-Mutant 2731 | -9/Materials | Repaired Imp. Ion Engine 2757 | -9/Materials | Repaired Aluminum Leg+ 2766 | -9/Materials | Discovered new exit (range 18) 3345 | -9/Materials | Discovered new exit (range 18) 3367 | -9/Materials | Entered another Materials area 3367 | -8/Materials | Evolved 2 slots: Power x1, Propulsion x1 3514 | -8/Materials | Core integrity fell below 50% 3555 | -8/Materials | Core integrity fell below 20% 3596 | -8/Materials | Lost 13 parts (4p2n3u4w) 3618 | -8/Materials | Destroyed by G-47 Trooper with Particle Gun Last Messages --------------- 03552_ Imp. Deuterium Engine destroyed. 03553_ Slug penetrates G-47 Trooper. 03559_ G-47 Trooper destroyed. 03562_ Slug penetrates G-47 Trooper. 03565_ Hvy. Assault Rifle destroyed. 03565_ Slug penetrates Wall. 03567_ Acquired Imp. Heat Sink. 03570_ Slug penetrates G-47 Trooper. 03580_ Acquired 57 matter. 03581_ Critical hit (Burn: +37). 03591_ Acquired Imp. Ion Engine. 03593_ Critical hit (Burn: +37). 03594_ Slug penetrates G-47 Trooper. 03594_ G-47 Trooper destroyed. 03599_ Acquired Lgt. Nuclear Core. 03601_ Acquired Particle Gun. [Achievement: Hydra] 03603_ Slug penetrates G-47 Trooper. 03606_ Slug penetrates Atomic Centrifuge. 03606_ Atomic Centrifuge disabled. Map ----- +----------------------------------------------------+ | | | | | | | | | | | | | ????????????????????????????????????????????? | | ????????????????????????????????????????????? | | ????????????????????????????????????????????? | | ????????????????????????????????????????????? | | ????????????????????????????????????????????? | | ????????????????????????????????????????????? | | ????????????????????????????????????????????? | | ????????????????????????????????????????????? | | ????????????????????????????????????????????? | | ????????????????????????????????????????????? | | ????????????????????????????????#######?????? | | ???????????#??????######???######"""""###???# | | ??????????## ##### ![#####% " "#???# | | ??????????+ [!%! " "##??# | | ???????????# % " " #??# | | ???????????#####+## = ##### " " #??# | | ??????????????????##+######## ""% " #?# | | ??????????????????# ! ## ""%% " #?# | | ??????????????????# """% ## "%""########## | | ??????????????????# @""" ## !%! | | ??????????????????# g""g ##% = | | ??????????????????# gg ## " " | | ??????????????????# "" ## """""""" | | ??????????????????# """ ## """ """ | | ??????????????????# """ / ## | | ??????????????????# ## | | ??????????????????###+####### | | ????????????????????# ??????# | | ????????????????????# ??????# /] | | ???????????????????? ?????? /] | | ???????????????????? ????? /] | | ???????????????????? ???? #"T"#### | | ????????????????????? ???## #####??# | | ??????????????????????????# ????????####### | | ??????????????????????????# ??????????????? | | ??????????????????????????? ??????????????? | | ????????????????????????????????????????????? | | ????????????????????????????????????????????? | | ????????????????????????????????????????????? | | ????????????????????????????????????????????? | | ????????????????????????????????????????????? | | ????????????????????????????????????????????? | | ????????????????????????????????????????????? | | ????????????????????????????????????????????? | +----------------------------------------------------+ Best States ------------- Heat Dissipation 58 Energy Generation 21 Energy Capacity 325 Matter Stores 395 Matter Capacity 500 Sight Range 18 Terrain Scan Density 10 Additional Mass Support 9 Armor Coverage 225 Evasion (%) 55 Recoil Reduction 2 Offensive Hacking 10 Item Schematics ----------------- None Robot Schematics ------------------ None Fabricated ------------ Nothing Repaired ---------- Lgt. Armor Plating | 18% | -9/Materials Aluminum Leg | 86% | -9/Materials Studied --------- Aluminum Leg | -9/Materials | Hacked Shotgun | -9/Materials | Hacked Imp. Light Cannon | -9/Materials | Hacked Alien Tech Used ----------------- None Achievements -------------- Bumper Bots Hydra Please Form A Line Challenges ------------ None Game ------ Seed FusionSniperWall Manual? 0 Play Time 01:16:11 Cumulative 11.1 hours Start 2026.04.07 @ 19:03:11 End 2026.04.07 @ 21:03:06 Sessions 2 Manual Loads 0 Difficulty Rogue Special Mode None Game No. 5 Rogue 1 Adventurer 4 Explorer 0 Win Type - Total 0 Types 0/0/0/0/0/0/0/0/0/0 Lore% 4 Gallery% 9 Achievement% 9 Wizard Run 0 Options --------- Layout 1 ASCII 0 Keyboard 0 Movement Mouse Keybinds 0 Fullscreen 2 Font 24/Smallcaps Map View 50x35 Zoom Use 0% Tactical HUD 1 Map Filters NONE Filters NONE Steam 1 RUN: ba550ddc-0e81-4705-b2d2-80539761c08b